Cogmind - Beta 13 @@@ ROGUE MODE // 2024.04.22 @ 19:17:59 Player: Calliope Result: Destroyed by as-13658 with Assembled Heavy Rifle Performance ------------- Evolutions (0) 0 Regions Visited (2) 400 Robots Destroyed (10) 50 Value Destroyed (208) 208 Prototype IDs (0) 0 Alien Tech Used (0) 0 Bonus (0) 0 TOTAL SCORE: 658 Bonus ------- None Cogmind --------- Core Integrity 0/250 Matter 278/300 Energy 100/100 System Corruption 5% Temperature Cool (27) Movement Core (350) Ox6 Location -10/Mines Parts ------- > --- POWER (1) -------- (None) > --- PROPULSION (2) --- (None) > --- UTILITY (2) ------ Large Storage Unit Visual Processing Unit > --- WEAPON (2) ------- Light Assault Rifle > --- INVENTORY (15) --- Aluminum Leg Aluminum Leg Wheel Wheel Flight Unit Small Storage Unit Medium Matter Pod (100) Small Laser Peak State ------------ > --- POWER ------------ Light Ion Engine > --- PROPULSION ------- Light Treads Light Treads > --- UTILITY ---------- Large Storage Unit Visual Processing Unit > --- WEAPON ----------- Medium Laser Small Laser > --- INVENTORY -------- Ion Engine Aluminum Leg Aluminum Leg Wheel Wheel Small Storage Unit Medium Matter Pod Small Laser Light Assault Rifle Light Assault Rifle [Rating: 9] Favorites ----------- Power Light Ion Engine Engine Light Ion Engine Propulsion Light Treads Treads Light Treads Leg Aluminum Leg Utility Large Storage Unit Storage Large Storage Unit Processor Visual Processing Unit Weapon Medium Laser Energy Gun Medium Laser Ballistic Gun Light Assault Rifle Build | -11 -10 -10 ------- Run | Yrd Mat Min Slots Evolved . | . . . Power . | . . . Propulsion . | . . . Utility . | . . . Weapon . | . . . Parts Attached 14 | 7 4 3 Power 2 | 1 . 1 Engine 2 | 1 . 1 Core . | . . . Reactor . | . . . Propulsion 4 | 2 2 . Treads 2 | . 2 . Leg 2 | 2 . . Wheel . | . . . Hover . | . . . Flight . | . . . Utility 3 | 1 2 . Device . | . . . Storage 2 | 1 1 . Processor 1 | . 1 . Hackware . | . . . Protection . | . . . Artifact . | . . . Weapon 5 | 3 . 2 Energy Gun 2 | 2 . . Energy Cannon . | . . . Ballistic Gun 3 | 1 . 2 Ballistic Cannon . | . . . Launcher . | . . . Special Weapon . | . . . Impact Weapon . | . . . Slashing Weapon . | . . . Piercing Weapon . | . . . Special Melee Weapon . | . . . Unidentified Prototypes . | . . . Parts Lost 7 | . . 7 Power 2 | . . 2 Propulsion 2 | . . 2 Utility . | . . . Weapon 3 | . . 3 Highest Loss Streak 6 | . . 6 To Critical Strikes . | . . . Average Slot Usage (%) 93 | . 93 94 Engine 12 | . 14 9 Treads 24 | . 23 26 Leg 3 | . 4 . Storage 14 | . 14 14 Processor 9 | . 7 14 Energy Gun 27 | . 28 26 Naked Turns . | . . . Heaviest Build 31 | 11 31 28 Greatest Support 40 | 20 40 40 Greatest Overweight (x) 3 | 3 1 . Average Overweight (x) . | 1 . . Largest Inventory Capacity 15 | 8 15 15 Average Capacity 13 | 7 13 15 Most Carried 11 | 8 10 11 Average Carried 8 | 5 7 10 Final Capacity 15 | 8 15 15 Final Carried 10 | 6 10 8 Class Distribution -------------------- 100% | Mutant Dominant Class ---------------- Mutant | -10/Materials Mutant | -10/Mines Resources | -11 -10 -10 ----------- Run | Yrd Mat Min Matter Collected 419 | 209 112 98 Remotely . | . . . Salvage Created 241 | . 162 79 Parts 11 | . 10 1 Haulers Intercepted . | . . . Recyclers Shooed . | . . . Parts Field Recycled . | . . . Retrieved Matter . | . . . Parts Self-Destructed . | . . . Prevented . | . . . Kills | -11 -10 -10 ------- Run | Yrd Mat Min Combat Hostiles Destroyed 9 | . 5 4 Guns 8 | . 4 4 Classes Destroyed 4 | . 3 1 Watcher 2 | . 2 . Swarmer 4 | . 2 2 Grunt 4 | . 3 1 Assembled 1 | . . 1 Best Kill Streak 2 | . 1 2 Combat Bots Only 2 | . 1 2 Max Kills in Single Turn 1 | . 1 1 Gunslinging . | . . . Exploded . | . . . Melee . | . . . Uniques/NPCs Destroyed . | . . . Combat | -11 -10 -10 -------- Run | Yrd Mat Min Hostile Shots Fired 116 | . 38 78 Missed 32 | . 10 22 Damage Taken 1028 | 1 275 752 Core 256 | . 25 231 Absorbed by Shields . | . . . Core Remaining (%) 100 | 100 . . Volleys Fired 34 | . 17 17 Largest 2 | . 2 2 Hottest 90 | . 90 90 Shots Fired 66 | . 34 32 Gun 66 | . 34 32 Cannon . | . . . Launcher . | . . . Special . | . . . Kinetic 7 | . . 7 Thermal 59 | . 34 25 Explosive . | . . . Electromagnetic . | . . . Robot Hit Streak 14 | . 13 14 Robot Miss Streak 4 | . 1 4 Penetration Max . | . . . Secondary Targets . | . . . Shots Hit Robots 43 | . 26 17 Core Hits 19 | . 10 9 Critical Kills . | . . . Critical Parts Destroyed . | . . . Critical Strikes 3 | . 2 1 Burn 3 | . 2 1 Melee Attacks . | . . . Impact . | . . . Slashing . | . . . Piercing . | . . . Sneak Attacks . | . . . Combat Hostiles . | . . . Follow-up Attacks . | . . . Damage Inflicted 519 | 2 317 200 Guns 517 | . 317 200 Cannons . | . . . Explosions . | . . . Melee . | . . . Ramming 2 | 2 . . Kinetic 47 | . . 47 Thermal 470 | . 317 153 Explosive . | . . . Electromagnetic . | . . . Impact . | . . . Slashing . | . . . Piercing . | . . . Highest Corruption 5 | . . 5 Average Corruption 1 | . . 1 Corruption Purged . | . . . Corruption Blocked . | . . . Effects 3 | . . 3 Matter Fused 2 | . . 2 Alerts 1 | . . 1 Overload Shots . | . . . Overflow Damage . | . . . Projectiles . | . . . Explosions . | . . . Melee . | . . . Knockbacks . | . . . Impact . | . . . Kinetic . | . . . Secondary . | . . . Self-Inflicted Damage 1 | 1 . . Shots . | . . . Rammed 1 | 1 . . Targets Rammed 1 | 1 . . Kicked . | . . . Crushed . | . . . Highest Temperature 264 | . 264 85 Average Temperature 81 | . 115 34 Received Heat Transfer 234 | . 102 132 Siege Activations . | . . . Robots Corrupted . | . . . Combat Hostiles . | . . . Parts Fried . | . . . Impact Corruptions . | . . . Robots Melted 1 | . 1 . Combat Hostiles 1 | . 1 . Parts Melted 5 | . 2 3 Heat Transferred 1462 | . 991 471 Parts Sabotaged . | . . . Parts Stolen . | . . . Parts Stripped . | . . . Power Chain Reactions . | . . . Alert | -11 -10 -10 ------- Run | Yrd Mat Min Peak Influence 108 | . 108 75 Initial 5 | . . 5 Average 48 | . 60 41 Maximum Alert Level . | . . . Low Security (%) 100 | 100 100 100 Level 1 . | . . . Level 2 . | . . . Level 3 . | . . . Level 4 . | . . . Level 5 . | . . . High Security . | . . . Max Security . | . . . Squads Dispatched 3 | . 2 1 Investigation 2 | . 1 1 Extermination . | . . . Reinforcement 1 | . 1 . Assault . | . . . Garrison . | . . . Intercept . | . . . Searches Triggered . | . . . Construction Impeded . | . . . Haulers Reinforced . | . . . Active Scanning Responses . | . . . Cargo Convoy Interrupts . | . . . Stealth | -11 -10 -10 --------- Run | Yrd Mat Min Distress Signals 2 | . 2 . Communications Jammed . | . . . Distress Signals . | . . . Times Spotted 31 | . 12 19 Peak Tracking Total 13 | . 4 13 Tactical Retreats 2 | . . 2 Traps | -11 -10 -10 ------- Run | Yrd Mat Min Traps Triggered 1 | . 1 . Indirectly . | . . . Trap Hack Attempts . | . . . Triggered . | . . . Disarmed . | . . . Reprogrammed . | . . . Reused . | . . . Traps Extracted . | . . . Installed . | . . . Triggered . | . . . Machines | -11 -10 -10 ---------- Run | Yrd Mat Min Machines Disabled . | . . . Max in Single Turn . | . . . Machines Repaired . | . . . Machines Dismantled . | . . . Machines Sabotaged . | . . . Overloaded Fab Kills . | . . . Hacking | -11 -10 -10 --------- Run | Yrd Mat Min Machines Accessed 6 | . 5 1 Terminals 6 | . 5 1 Fabricators . | . . . Repair Stations . | . . . Recycling Units . | . . . Scanalyzers . | . . . Garrison Access . | . . . Total Hacks 22 | . 18 4 Successful 9 | . 9 . Failed 13 | . 9 4 Catastrophic . | . . . Database Lockouts . | . . . Manual 22 | . 18 4 Terminals 22 | . 18 4 Fabricators . | . . . Repair Stations . | . . . Recycling Units . | . . . Scanalyzers . | . . . Garrison Access . | . . . Terminal Hacks 3 | . 3 . Unreport Threat 1 | . 1 . Locate Traps 1 | . 1 . Recall Investigation 1 | . 1 . Fabricator Hacks . | . . . Repair Station Hacks . | . . . Recycling Unit Hacks . | . . . Scanalyzer . | . . . Garrison Access Hacks . | . . . Unauthorized Hacks 6 | . 6 . Terminals 6 | . 6 . Track 1 | . 1 . Assimilate 1 | . 1 . Botnet 4 | . 4 . Fabricators . | . . . Repair Stations . | . . . Recycling Units . | . . . Scanalyzers . | . . . Garrison Access . | . . . Data Cores Recovered . | . . . Used . | . . . Hacking Detections 6 | . 5 1 Full Trace Events 1 | . . 1 Feedback Events 1 | . . 1 Corruption 1 | . . 1 Feedback Blocked . | . . . Robot Schematics Acquired . | . . . Robots Built . | . . . Authchips . | . . . Time . | . . . Total Robot Build Rating . | . . . Part Schematics Acquired . | . . . Parts Built . | . . . Authchips . | . . . Time . | . . . Total Part Build Rating . | . . . Parts Repaired . | . . . Time . | . . . Parts Recycled . | . . . Recycled Matter . | . . . Retrieved Matter . | . . . Retrieved Components . | . . . Parts Scanalyzed . | . . . Part Schematics Acquired . | . . . Parts Damaged . | . . . Bothacking | -11 -10 -10 ------------ Run | Yrd Mat Min Used RIF Installer . | . . . Robots Hacked . | . . . Non-combat . | . . . Combat . | . . . Robot Hacks Applied . | . . . Relay Couplers Released . | . . . Fabnet Peak Effective % . | . . . Robots Rewired . | . . . Allies Hacked . | . . . Hacks Repelled . | . . . Allies | -11 -10 -10 -------- Run | Yrd Mat Min Total Allies . | . . . Largest Group . | . . . Highest-Rated Group . | . . . Highest-Rated Ally . | . . . Total Orders . | . . . Ally Attacks . | . . . Total Damage . | . . . Kills . | . . . Allies Corrupted . | . . . Allies Melted . | . . . Intel | -11 -10 -10 ------- Run | Yrd Mat Min Robot Analysis Total . | . . . Derelict Logs Recovered 1 | . . 1 Drone Launches . | . . . Drone Recoveries . | . . . Exploration | -11 -10 -10 ------------- Run | Yrd Mat Min Turns Passed 995 | 104 619 272 Spaces Moved 436 | 62 273 101 Core 61 | 61 . . Treads 314 | . 213 101 Legs 61 | 1 60 . Wheels . | . . . Hover . | . . . Flight . | . . . Fastest Speed 50 | 50 120 160 Average Speed 151 | 137 151 160 Slowest Speed 200 | 200 190 160 Overloaded Moves . | . . . Propulsion Burnouts . | . . . Robots Hopped . | . . . Cave-ins Triggered . | . . . Exploration Rate (%) 23 | 4 41 26 Regions Visited 2 Branch Regions 1 Pre-discovered Areas . | . . . Known Exits Taken . | . . . Unknown Exits Taken 2 | 1 1 . Scrap Searched . | . . . Spaces Dug . | . . . Terrain Destroyed . | . . . Melee . | . . . Projectile . | . . . AOE . | . . . Terrain Rammed . | . . . Walls Destroyed . | . . . Machines Disabled . | . . . Actions | -11 -10 -10 --------- Run | Yrd Mat Min Total 700 | 77 442 181 Wait 202 | . 145 57 Move 434 | 61 272 101 Hop . | . . . Pick Up 12 | 8 3 1 Fast Attach 6 | 4 2 . Attach 5 | 2 . 3 Detach 1 | . 1 . Swap 3 | 1 2 . Drop . | . . . Fire 34 | . 17 17 Melee . | . . . Ram 1 | 1 . . Kick . | . . . Crush . | . . . Escape Stasis . | . . . Rewire 2 | . . 2 Trap . | . . . Miscellaneous . | . . . Route ------- -11/Scrapyard -10/Materials -10/Mines History --------- Turn | Location | Event 12 | -11/Scrapyard | Discovered new exit (range 16) 105 | -11/Scrapyard | Entered Materials 304 | -10/Materials | Build established: Mutant 616 | -10/Materials | Discovered new exit (range 6) 724 | -10/Materials | Entered Mines 929 | -10/Mines | Learned Materials trap positions 933 | -10/Mines | Assembled infested the area 938 | -10/Mines | Assisted by a Guerilla fighting off Assembled 986 | -10/Mines | Core integrity fell below 50% 993 | -10/Mines | Core integrity fell below 20% 996 | -10/Mines | Destroyed by as-13658 with Assembled Heavy Rifle Last Messages --------------- 00946_ Seismic Survey Station disabled. 00946_ HV Slug penetrates Seismic Survey Station. 00946_ Seismic Survey Station disabled. 00948_ HV Slug penetrates as-77728. 00948_ as-77728 suffers critical hit (Destroy). 00950_ as-39633 suffers critical hit (Destroy). 00958_ K-01 Serf collects debris. 00965_ T-07 Excavator destroyed. 00967_ K-01 Serf collects debris. 00968_ K-01 Serf destroyed. 00975_ as-27235 destroyed. 00977_ Ion Engine destroyed. 00977_ System corrupted by crushing effect (+4). 00981_ Med. Laser destroyed. 00983_ System corrupted: IFF burst signal emitted. 00983_ Lgt. Treads destroyed. 00985_ Sml. Laser destroyed. 00995_ Lgt. Assault Rifle destroyed. Map ----- +----------------------------------------------------+ | | | | | | | | | | | ???????????????????????????????????????????? | | ???????????????????###?????????????????????? | | ?????????????????## ##????????????????????? | | ????????????????## #????????????????????? | | ???????????????## #????????????????????? | | ???????????##### #??????????????????????? | | ??????????## #???????????????????????? | | ?????###### r ##??????????????????????? | | ?????# ####???????????????????? | | #????# ##### % ##???####?####??????? | | #????# #???## #??## ## %*#??????? | | #????# #????## ## ! #### ##=!###????? | | ?????# #?????# ### !k ## ##???? | | ?????# #?????# #?## ] #???? | | ###### #?????# #??## #???? | | #?????# #???## % #????? | | ########?????# ????## a ##???? | | ?????????????###?????## aa!## ###?? | | ??????????????????????# a%#### ##? | | ??????????????????????## aa#??# %% ! #? | | ???????????????????????##@ ##??##% #? | | ????????????????????????####????# ## ##? | | ????????????????????????????????# #?# ##?? | | ???????????????????????????###### #######?? | | ???????????????????????????# #?? | | ???????????????????????????# % #?? | | ???????????????????????????# """ "" """ #?? | | ???????????????????????????# """ "" """ #?? | | ???????????????????????????# "" """ """ #?? | | ???????????????????????????# % #?? | | ???????????????????????????# "" """ """ #?? | | ???????????????????????????# " " """ """ #?? | | ???????????????????????????# """%""" """ #?? | | ???????????????????????????# ? ? #?? | | ?????????????????????????????""" ?"" ""??#?? | | ???????????????????????????? """ ??" "?????? | | ???????????????????????????????" ??" "?????? | | ???????????????????????????????????? ??????? | | ???????????????????????????????????? ??????? | | ???????????????????????????????????? ??????? | | ???????????????????????????????????? ??????? | | ???????????????????????????????????? ??????? | | ???????????????????????????????????????????? | | ???????????????????????????????????????????? | | ???????????????????????????????????????????? | +----------------------------------------------------+ Best States ------------- Heat Dissipation 25 Energy Generation 10 Energy Capacity 250 Matter Stores 300 Matter Capacity 300 Sight Range 18 Terrain Scan Density 10 Evasion (%) 55 Recoil Reduction 2 Item Schematics ----------------- None Robot Schematics ------------------ None Fabricated ------------ Nothing Alien Tech Used ----------------- None Achievements -------------- None Challenges ------------ None Game ------ Seed GammaBeamTriangulator Manual? 0 Play Time 00:11:46 Cumulative 20.1 hours Start 2024.04.19 @ 16:58:40 End 2024.04.22 @ 19:17:59 Sessions 2 Manual Loads 0 Difficulty Rogue Special Mode None Game No. 35 Rogue 33 Adventurer 0 Explorer 2 Win Type - Total 0 Types 0/0/0/0/0/0/0/0/0 Lore% 7 Gallery% 24 Achievement% 23 Wizard Run 0 Options --------- Layout 2 ASCII 0 Keyboard 1 Movement Vi Keybinds 0 Fullscreen 2 Font 32/SmallcapsGlow Map View 50x44 Zoom Use 0% Tactical HUD 1 Map Filters NONE Filters NONE Steam 1 RUN: 60c35c17-0c7e-4e08-ba6e-1b679ca06a81